Cogmind - Beta 16 @@@ ROGUE MODE // 2025.11.09 @ 02:59:03 Player: Demo Result: Destroyed by Piercing Trap Performance ------------- Evolutions (0) 0 Regions Visited (2) 400 Robots Destroyed (2) 10 Value Destroyed (47) 47 Prototype IDs (0) 0 Alien Tech Used (0) 0 Bonus (0) 0 TOTAL SCORE: 457 Bonus ------- None Cogmind --------- Core Integrity 0/250 Matter 125/300 Energy 98/100 System Corruption 2% Temperature Cool (0) Movement Core (50) Location -10/Subcaves Parts ------- > --- POWER (1) -------- (None) > --- PROPULSION (2) --- (None) > --- UTILITY (2) ------ (None) > --- WEAPON (2) ------- (None) > --- INVENTORY (5) ---- Scrap Shield Subdweller Beam Cannon Subdweller Machine Gun Grenade Launcher Peak State ------------ > --- POWER ------------ (None) > --- PROPULSION ------- (None) > --- UTILITY ---------- Scrap Shield > --- WEAPON ----------- Grenade Launcher > --- INVENTORY -------- (None) [Rating: 5] Favorites ----------- Power None Propulsion Light Treads Treads Light Treads Utility Scrap Shield Protection Scrap Shield Weapon Grenade Launcher Launcher Grenade Launcher Build | -11 -10 -10 ------- Run | Yrd Mat Sub Slots Evolved . | . . . Power . | . . . Propulsion . | . . . Utility . | . . . Weapon . | . . . Parts Attached 4 | 2 1 1 Power . | . . . Engine . | . . . Core . | . . . Reactor . | . . . Propulsion 2 | 2 . . Treads 2 | 2 . . Leg . | . . . Wheel . | . . . Hover . | . . . Flight . | . . . Utility 1 | . . 1 Device . | . . . Storage . | . . . Processor . | . . . Hackware . | . . . Protection 1 | . . 1 Artifact . | . . . Weapon 1 | . 1 . Energy Gun . | . . . Energy Cannon . | . . . Ballistic Gun . | . . . Ballistic Cannon . | . . . Launcher 1 | . 1 . Special Weapon . | . . . Impact Weapon . | . . . Slashing Weapon . | . . . Piercing Weapon . | . . . Special Melee Weapon . | . . . Unidentified Prototypes . | . . . Parts Lost 3 | . . 3 Power . | . . . Propulsion 2 | . . 2 Utility 1 | . . 1 Weapon . | . . . Highest Loss Streak 2 | . . 2 To Critical Strikes . | . . . Average Backups 2 | . . 2 Power . | . . . Propulsion . | . . . Utility . | . . . Weapon 1 | . . 1 Tool/Special . | . . . Unused Backups 2 | . . 2 Power . | . . . Propulsion . | . . . Utility . | . . . Weapon 2 | . . 2 Tool/Special . | . . . Average Slot Usage (%) 10 | . 30 8 Treads 8 | . 28 6 Launcher 1 | . 2 1 Peak Build Rating 5 | 2 3 5 Average Rating . | 1 2 . On Entrance 1 | . 2 2 Avg Prop Armor Cover (%) 38 | 41 41 36 Naked Turns 335 | . . 335 Heaviest Build 3 | . . 3 Greatest Support 3 | 3 3 3 Greatest Overweight (x) . | . . . Average Overweight (x) . | . . . Largest Inventory Capacity 5 | 5 5 5 Average Capacity 5 | 5 5 5 Most Carried 5 | . 1 5 Average Carried 2 | . . 3 Final Capacity 5 | 5 5 5 Final Carried 5 | . 1 5 Class Distribution -------------------- 100% | Mutant Dominant Class ---------------- Mutant | -10/Materials Mutant | -10/Subcaves Resources | -11 -10 -10 ----------- Run | Yrd Mat Sub Matter Collected 375 | 178 42 155 Remotely . | . . . Salvage Created 15 | . 4 11 Parts 2 | . 2 . Haulers Intercepted . | . . . Recyclers Shooed . | . . . Parts Field Recycled . | . . . Retrieved Matter . | . . . Parts Self-Destructed 5 | . . 5 Prevented . | . . . Parts Restored . | . . . Kills | -11 -10 -10 ------- Run | Yrd Mat Sub Combat Hostiles Destroyed 1 | . . 1 AOE 1 | . . 1 Classes Destroyed 2 | . 1 1 Tunneler 1 | . 1 . Subdweller 1 | . . 1 Best Kill Streak 1 | . 1 1 Combat Bots Only 1 | . . 1 Max Kills in Single Turn 1 | . 1 1 Gunslinging . | . . . Exploded 1 | . . 1 Melee . | . . . Uniques/NPCs Destroyed . | . . . Combat | -11 -10 -10 -------- Run | Yrd Mat Sub Hostile Shots Fired 41 | . 9 32 Missed 16 | . 4 12 Hits 25 | . 5 20 Projectile 25 | . 5 20 Damage Taken 725 | . 187 538 Core 261 | . 20 241 Absorbed by Shields . | . . . Core Remaining (%) 100 | 100 . . Volleys Fired 26 | . 4 22 Largest 1 | . 1 1 Hottest 30 | . 30 30 Shots Fired 26 | . 4 22 Gun . | . . . Cannon . | . . . Launcher 26 | . 4 22 Special . | . . . Kinetic . | . . . Thermal . | . . . Explosive 26 | . 4 22 Electromagnetic . | . . . Robot Hit Streak 4 | . . 4 Robot Miss Streak 1 | . . 1 Penetration Max . | . . . Secondary Targets . | . . . Shots Hit Robots 6 | . . 6 Core Hits 4 | . 2 2 Critical Kills . | . . . Critical Parts Destroyed . | . . . Critical Strikes . | . . . Melee Attacks . | . . . Impact . | . . . Slashing . | . . . Piercing . | . . . Sneak Attacks . | . . . Combat Hostiles . | . . . Follow-up Attacks . | . . . Damage Inflicted 246 | . 36 210 Guns . | . . . Cannons . | . . . Explosions 240 | . 36 204 Melee . | . . . Ramming 6 | . . 6 Kinetic . | . . . Thermal . | . . . Explosive 240 | . 36 204 Electromagnetic . | . . . Impact . | . . . Slashing . | . . . Piercing . | . . . Highest Corruption 2 | . . 2 Average Corruption 2 | . . 2 Corruption Purged . | . . . Corruption Blocked . | . . . Effects 3 | . . 3 Heat Flow Errors 1 | . . 1 Data Loss (minor) 1 | . . 1 Data Loss (major) 1 | . . 1 Overload Shots . | . . . Overflow Damage . | . . . Projectiles . | . . . Explosions . | . . . Melee . | . . . Knockbacks . | . . . Impact . | . . . Kinetic . | . . . Secondary . | . . . Self-Inflicted Damage 147 | . 111 36 Shots 6 | . 4 2 Rammed 1 | . . 1 Targets Rammed 1 | . . 1 Kicked . | . . . Crushed . | . . . Highest Temperature 125 | . . 125 Average Temperature 80 | . . 80 Received Heat Transfer 174 | . 45 129 Siege Activations . | . . . Martial Activations . | . . . Shielding Activations . | . . . Robots Disrupted . | . . . Combat Hostiles . | . . . Robots Corrupted . | . . . Combat Hostiles . | . . . Parts Fried . | . . . Impact Corruptions . | . . . Robots Melted . | . . . Combat Hostiles . | . . . Parts Melted . | . . . Heat Transferred . | . . . Parts Sabotaged . | . . . Parts Stolen . | . . . Parts Stripped . | . . . Power Chain Reactions . | . . . Alert | -11 -10 -10 ------- Run | Yrd Mat Sub Maximum Alert Level . | . . . Low Security (%) 100 | 100 100 . Level 1 . | . . . Level 2 . | . . . Level 3 . | . . . Level 4 . | . . . Level 5 . | . . . High Security . | . . . Max Security . | . . . Peak Influence 25 | . 25 . Initial . | . . . Average 2 | . 3 . Influence Increases 55 | . 25 30 Destroy 0b10 Robot/NC 5 | . 5 . Destroy Structure 5 | . 5 . Lose Combat Pursuer 45 | . 15 30 Influence Decreases 55 | . . 55 Entered New Map 13 | . . 13 Time Decay 42 | . . 42 Squads Dispatched . | . . . Investigation . | . . . Extermination . | . . . Reinforcement . | . . . Assault . | . . . Garrison . | . . . Intercept . | . . . Searches Triggered . | . . . Construction Impeded . | . . . Haulers Reinforced . | . . . Active Scanning Responses . | . . . Cargo Convoy Interrupts . | . . . Stealth | -11 -10 -10 --------- Run | Yrd Mat Sub Distress Signals . | . . . Communications Jammed . | . . . Distress Signals . | . . . Times Spotted 9 | . 3 6 Peak Tracking Total 4 | . 4 3 Tactical Retreats 4 | . 1 3 Traps | -11 -10 -10 ------- Run | Yrd Mat Sub Traps Triggered 1 | . . 1 Indirectly . | . . . Trap Hack Attempts . | . . . Triggered . | . . . Disarmed . | . . . Reprogrammed . | . . . Reused . | . . . Traps Extracted . | . . . Installed . | . . . Triggered . | . . . Machines | -11 -10 -10 ---------- Run | Yrd Mat Sub Machines Disabled . | . . . Max in Single Turn . | . . . Machines Repaired . | . . . Machines Dismantled . | . . . Machines Sabotaged . | . . . Overloaded Fab Kills . | . . . Hacking | -11 -10 -10 --------- Run | Yrd Mat Sub Machines Accessed 1 | . . 1 Terminals . | . . . Fabricators . | . . . Repair Stations . | . . . Recycling Units . | . . . Scanalyzers . | . . . Garrison Access . | . . . Total Hacks 5 | . . 5 Successful 5 | . . 5 Failed . | . . . Catastrophic . | . . . Database Lockouts . | . . . Manual . | . . . Terminals . | . . . Fabricators . | . . . Repair Stations . | . . . Recycling Units . | . . . Scanalyzers . | . . . Garrison Access . | . . . Terminal Hacks 5 | . . 5 Record 5 | . . 5 Fabricator Hacks . | . . . Repair Station Hacks . | . . . Recycling Unit Hacks . | . . . Scanalyzer . | . . . Garrison Access Hacks . | . . . Unauthorized Hacks . | . . . Terminals . | . . . Fabricators . | . . . Repair Stations . | . . . Recycling Units . | . . . Scanalyzers . | . . . Garrison Access . | . . . Data Cores Recovered . | . . . Used . | . . . Hacking Detections . | . . . Full Trace Events . | . . . Feedback Events . | . . . Feedback Blocked . | . . . Robot Schematics Acquired . | . . . Robots Built . | . . . Authchips . | . . . Time . | . . . Total Robot Build Rating . | . . . Part Schematics Acquired . | . . . Parts Built . | . . . Authchips . | . . . Time . | . . . Total Part Build Rating . | . . . Part Studies Acquired . | . . . Parts Repaired . | . . . Time . | . . . Parts Recycled . | . . . Recycled Matter . | . . . Retrieved Matter . | . . . Retrieved Components . | . . . Parts Scanalyzed . | . . . Part Schematics Acquired . | . . . Parts Damaged . | . . . Bothacking | -11 -10 -10 ------------ Run | Yrd Mat Sub Used RIF Installer . | . . . Robots Hacked . | . . . Non-combat . | . . . Combat . | . . . Robot Hacks Applied . | . . . Relay Couplers Released . | . . . Fabnet Peak Effective % . | . . . Robots Rewired . | . . . Allies Hacked . | . . . Hacks Repelled . | . . . Allies | -11 -10 -10 -------- Run | Yrd Mat Sub Total Allies . | . . . Largest Group . | . . . Highest-Rated Group . | . . . Highest-Rated Ally . | . . . Total Orders . | . . . Ally Attacks . | . . . Total Damage . | . . . Kills . | . . . Allies Corrupted . | . . . Allies Melted 1 | . . 1 Intel | -11 -10 -10 ------- Run | Yrd Mat Sub Active Infowar (turns) . | . . . Robot Analysis Total . | . . . Derelict Logs Recovered 1 | . . 1 Drone Launches . | . . . Drone Recoveries . | . . . Exploration | -11 -10 -10 ------------- Run | Yrd Mat Sub Turns Passed 650 | 17 51 582 Spaces Moved 998 | 27 76 895 Core 998 | 27 76 895 Treads . | . . . Legs . | . . . Wheels . | . . . Hover . | . . . Flight . | . . . Fastest Speed 50 | 50 50 50 Average Speed 50 | 50 50 50 Slowest Speed 50 | 50 50 50 Overloaded Moves . | . . . Propulsion Burnouts . | . . . Robots Hopped . | . . . Potential Cave-ins . | . . . Cave-ins Triggered . | . . . Exploration Rate (%) 24 | 3 16 55 Regions Visited 2 Branch Regions 1 Pre-discovered Areas 3 | . . 3 Known Exits Taken . | . . . Unknown Exits Taken 2 | 1 1 . Scrap Searched 3 | . . 3 Spaces Dug . | . . . Terrain Destroyed 116 | . 14 102 Melee . | . . . Projectile . | . . . AOE 116 | . 14 102 Terrain Rammed . | . . . Walls Destroyed . | . . . Machines Disabled . | . . . Actions | -11 -10 -10 --------- Run | Yrd Mat Sub Total 1123 | 28 84 1011 Wait 75 | . 2 73 Move 996 | 26 75 895 Hop . | . . . Pick Up 5 | . 1 4 Fast Attach 2 | 2 . . Attach 8 | . 1 7 Detach 8 | . 1 7 Swap . | . . . Drop . | . . . Fire 26 | . 4 22 Melee . | . . . Ram 1 | . . 1 Kick . | . . . Crush . | . . . Escape Stasis . | . . . Rewire . | . . . Trap . | . . . Miscellaneous 2 | . . 2 Route ------- -11/Scrapyard -10/Materials -10/Subcaves (discovered 2 exits: [*Mat x2]) History --------- Turn | Location | Event 6 | -11/Scrapyard | Discovered new exit (range 15) 18 | -11/Scrapyard | Entered Materials 64 | -10/Materials | Discovered new exit (range 6) 69 | -10/Materials | Entered Subcaves 70 | -10/Subcaves | Approached by a straggling Scientist 78 | -10/Subcaves | Learned location of Zion (-7) 78 | -10/Subcaves | Met a Zionite searching for "candidates" 165 | -10/Subcaves | Ambushed by Subdwellers from Twisted Machinery 246 | -10/Subcaves | Core integrity fell below 50% 301 | -10/Subcaves | Build established: Mutant 308 | -10/Subcaves | Shifting Twisted Machinery released Barrage Gun 346 | -10/Subcaves | Disturbed a concealed Subdweller 349 | -10/Subcaves | Discovered new exit (range 13) 355 | -10/Subcaves | Visited Clippyterm 357 | -10/Subcaves | Learned location of Section 7 (-3) 357 | -10/Subcaves | Learned Research machine intel 360 | -10/Subcaves | Core integrity fell below 20% 465 | -10/Subcaves | Shifting Twisted Machinery released Battle Rifle 590 | -10/Subcaves | Discovered new exit (range 5) 651 | -10/Subcaves | Destroyed by Piercing Trap Last Messages --------------- 00401_ XS-K8K(u) builds Twisted Machinery. 00402_ The unstable cave ceiling collapses. 00404_ XS-K8K(u) builds Twisted Machinery. 00412_ Acquired 34 matter. 00415_ Acquired Sub. Beam Cannon. 00418_ Acquired Sub. Machine Gun. 00424_ Scrap Shield Fragment affixed to Scrap Shield (+30). Battle Rifle falls loose from the Twisted Machinery. 00468_ System corrupted: Substantial component data lost. 00487_ U0-4UG(u) builds Twisted Machinery. 00524_ System corrupted: Component data lost. 00556_ The unstable cave ceiling collapses. 00590_ EXIT=FOUND 00647_ Acquired 50 matter. 00651_ Triggered Piercing Trap. 00651_ Spikes shoot up from the floor. 00651_ Critical hit (Impale). Map ----- +----------------------------------------------------+ | ?# ##?# # ##?????????????????????????????????? | | ?## ##??##? ##??????????????????????????????????? | | ??# #??????#???????????????????????????????????? | | ?## ##??????????????????????????????????????????? | | ?# #??????????????????????????????????????????? | | ?## ###????????????????????????????????????????? | | ?# #????????????????????????????????????????? | | ?## #????????????????????????????????????????? | | ??## #????????????????????????????????????????? | | ???## #????????????????????????????????????????? | | ????# #?????????????????????????##?????????????? | | ????## ##???????????????????????# #?????????????? | | ?????# #######???????????????## #?????????????? | | ????## #???????????????# #?????????????? | | ???## #???????????????# #?????????????? | | ???# #???????????????# ??????????????? | | ??# ##??????????????# ??????????????? | | ?# ### #??????????????# "#??????????????? | | ?## #?# #??????????????# "#??????????????? | | ??## #### ##??????????????# #??????????????? | | ???# ##?# #???????????##### #??????????????? | | ???# ##??# #??????????## ## #??????????????? | | ???####????# ##????###### ##?????????????? | | ??????????## ###### ######????????? | | ?????????## ## ####?????? | | ?####???## @ ##????? | | ## ##?## ####?? | | # ### ### #?? | | # ##### ## #### ##?? | | # ##?## #; #####??# #??? | | ## ## #?## ### #?????# #### | | ?# ##### ### ## ## ####?????# | | ?# #?## ## ##?# "" #????????## | | ## ##?# ### "" #?????????#### # # | | # #### "#" ##????????????### | | #### ##### ## #???????????????# # | | ???# # ## ##???### #???????????????# | | ???# ####### ##???????? ##???????????????## | | ???# #??#### #????????? #?????????????????## | | ???# #?## #?????????? ??????????????##??? | | ???######### ##?????????????????????????## ### | | ??????????# ####?????????????????????????## # | | ??????????# ##????????????????????????????# | | ??????????# ##?????????????????????????????# | | ??????????##???????????????????????????????## ## | | ????????????????????????????????????????????#####? | | ?????????????????????????????????????????????????? | | ?????????????????????????????????????????????????? | | ?????????????????????????????????????????????????? | | ?????????????????????????????????????????????????? | +----------------------------------------------------+ Best States ------------- Heat Dissipation 25 Energy Generation 5 Energy Capacity 100 Matter Stores 300 Matter Capacity 300 Sight Range 16 Terrain Scan Density 10 Armor Coverage 800 Evasion (%) 50 Recoil Reduction 2 Item Schematics ----------------- None Robot Schematics ------------------ None Fabricated ------------ Nothing Repaired ---------- Nothing Studied --------- None Alien Tech Used ----------------- None Achievements -------------- None Challenges ------------ None Game ------ Seed RagnarokQuantumCharger Manual? 0 Play Time 00:04:19 Cumulative 389.2 hours Start 2025.11.09 @ 02:54:49 End 2025.11.09 @ 02:59:03 Sessions 1 Manual Loads 0 Difficulty Rogue Special Mode None Game No. 358 Rogue 358 Adventurer 0 Explorer 0 Win Type - Total 3 Types 2/1/0/0/0/0/0/0/0/0 Lore% 84 Gallery% 83 Achievement% 62 Wizard Run 0 Options --------- Layout 1 ASCII 0 Keyboard 0 Movement Numpad Keybinds 0 Fullscreen 1 Font 24/Smallcaps Map View 50x35 Zoom Use 0% Tactical HUD 1 Map Filters NONE Filters NONE Steam 1 RUN: f4824a58-60ea-4353-aa42-f338e306f633